bitfinex-derivatives/quotes_BTCF0:USTF0_20250402
["timestamp","ask_amount","ask_price","bid_price","bid_amount"]
[1743557594325,0.00017651,84993.0,84984.0,0.03104]
[1743557594515,0.00017651,84993.0,84992.0,0.4784557]
[1743557594919,0.00017651,84993.0,84992.0,0.5441557]
[1743557595222,0.00017651,84993.0,84992.0,0.5435557]
[1743557595223,0.11783081,84993.0,84992.0,0.5435557]
[1743557595623,0.00017651,84993.0,84992.0,0.5475557]
[1743557596835,0.11783081,84993.0,84992.0,0.5475557]
[1743557597017,0.11783081,84993.0,84992.0,0.5485557]
[1743557597425,0.00017651,84993.0,84992.0,0.5485557]
[1743557597824,0.11783081,84993.0,84992.0,0.5485557]
[1743557598534,0.11783081,84993.0,84992.0,0.4309]
[1743557600236,0.14856591,84985.0,84984.0,0.1182668]
[1743557601335,0.14956591,84985.0,84984.0,0.1192668]
[1743557601534,0.15056591,84985.0,84984.0,0.1202668]
[1743557601833,0.03290001,84985.0,84984.0,0.1202668]
[1743557602023,0.002,84985.0,84984.0,0.1202668]
[1743557602534,0.00268,84985.0,84984.0,0.1202668]
[1743557602837,0.002,84985.0,84984.0,0.1202668]
[1743557603036,0.1196654,84985.0,84984.0,0.1202668]
[1743557603236,0.12026541,84985.0,84984.0,0.1202668]
[1743557611043,0.15316541,84985.0,84984.0,0.1202668]
[1743557612248,0.15316541,84985.0,84984.0,0.1524668]
[1743557612630,0.15316541,84985.0,84984.0,0.1850668]
[1743557617649,0.12026541,84985.0,84984.0,0.1850668]
[1743557622840,0.00260001,84985.0,84984.0,0.1850668]
[1743557623040,0.14034604,84988.0,84987.0,0.1176627]
[1743557623336,0.21058037,85001.0,85000.0,0.1176447]
[1743557623549,0.21138037,85001.0,85000.0,0.4792447]
[1743557623941,0.32902367,85001.0,85000.0,0.4792447]
[1743557624137,0.21138037,85001.0,85000.0,0.4792447]
[1743557624333,0.21138037,85001.0,85000.0,0.5402447]
[1743557626037,0.21138037,85001.0,85000.0,0.5422447]
[1743557626540,0.01897543,85001.0,85000.0,0.55377386]
[1743557626849,0.01817543,85001.0,85000.0,0.55377386]
[1743557627049,3e-08,85001.0,85000.0,0.75889289]
[1743557627249,3e-08,85001.0,85000.0,0.99889289]
[1743557627437,0.10555044,85005.0,85004.0,0.1176391]
[1743557627638,0.10555044,85005.0,85004.0,0.5792391]
[1743557628148,0.10555044,85005.0,85004.0,0.6096391]
[1743557630336,0.10555044,85005.0,85004.0,0.6106391]
[1743557630951,0.00017651,85009.0,85008.0,0.1176336]
[1743557631151,0.00017651,85009.0,85008.0,0.1985936]
[1743557631854,0.00017651,85009.0,85008.0,0.2612936]
[1743557632539,0.00117651,85009.0,85008.0,0.2612936]
[1743557632943,0.00117651,85009.0,85008.0,0.2622936]
[1743557638746,0.00117651,85009.0,85008.0,0.1194336]
[1743557639744,0.00177652,85009.0,85008.0,0.1194336]
[1743557639945,0.00117651,85009.0,85008.0,0.1194336]
[1743557640648,0.18330871,85009.0,85008.0,0.1194336]
[1743557640840,0.18410871,85009.0,85008.0,0.1194336]
[1743557643152,0.03487651,85009.0,85008.0,0.1194336]
[1743557643349,0.03407651,85009.0,85008.0,0.1194336]
[1743557643651,0.00117651,85009.0,85008.0,0.1194336]
[1743557643855,0.00117651,85009.0,85008.0,0.1836336]
[1743557646353,0.00117651,85009.0,85008.0,0.2836336]
[1743557647455,0.00117651,85009.0,85008.0,0.1836336]
[1743557648050,0.00117651,85009.0,85008.0,0.1504336]
[1743557649352,0.00017651,85009.0,85008.0,0.1524336]
[1743557650265,0.00117651,85009.0,85008.0,0.1494336]
[1743557650564,0.00117651,85009.0,85008.0,0.1514336]
[1743557650859,0.00117651,85009.0,85008.0,0.1494336]
[1743557651063,0.00117651,85009.0,85008.0,0.1504336]
[1743557653162,0.00017651,85009.0,85008.0,0.1504336]
[1743557654152,1e-08,85009.0,85008.0,0.1504336]
[1743557654358,1e-08,85009.0,85008.0,0.5304336]
[1743557654665,0.0004,85023.0,85022.0,0.1176142]
[1743557654968,0.00100001,85023.0,85022.0,1.1904142]
[1743557655266,0.0004,85023.0,85022.0,1.2938142]
[1743557655665,0.0004,85023.0,85022.0,1.0138142]
[1743557656066,0.0034,85023.0,85022.0,1.0138142]
[1743557656965,0.0044,85023.0,85022.0,1.0138142]
[1743557657268,0.0044,85023.0,85022.0,1.41546934]
[1743557657463,0.0044,85023.0,85022.0,1.39153791]
[1743557660869,0.0044,85023.0,85022.0,0.98988277]
[1743557663872,0.0044,85023.0,85022.0,1.24988277]
[1743557667272,0.0044,85023.0,85022.0,0.98988277]
[1743557667463,0.0044,85023.0,85022.0,0.95988277]
[1743557668067,0.0044,85023.0,85022.0,0.99168277]
[1743557668370,0.0014,85023.0,85022.0,0.99168277]
[1743557668669,0.0014,85023.0,85022.0,0.99268277]
[1743557669164,0.0014,85023.0,85022.0,0.27108277]
[1743557669364,0.0014,85023.0,85022.0,0.99268277]
[1743557669564,0.0014,85023.0,85022.0,0.96088277]
[1743557670072,0.0014,85023.0,85022.0,0.95988277]
[1743557670264,0.0014,85023.0,85022.0,0.96088277]
[1743557670466,0.0004,85023.0,85022.0,0.96088277]
[1743557670667,0.0004,85023.0,85022.0,0.96288277]
[1743557670871,0.0004,85023.0,85022.0,0.99478277]
[1743557671176,0.0004,85023.0,85022.0,1.27417816]
[1743557671362,0.0004,85023.0,85022.0,1.27517816]
[1743557672271,0.0004,85023.0,85022.0,1.27417816]
[1743557672475,0.0014,85023.0,85022.0,1.27317816]
[1743557672775,0.0014,85023.0,85022.0,1.27417816]
[1743557673076,0.0004,85023.0,85022.0,1.27417816]
[1743557673268,0.0014,85023.0,85022.0,1.27417816]
[1743557673866,0.0014,85023.0,85022.0,0.91337816]
[1743557674074,0.0014,85023.0,85022.0,0.80111816]
[1743557674269,0.0014,85023.0,85022.0,0.76160959]
[1743557675673,0.0347,85023.0,85022.0,0.76160959]
[1743557675871,0.0345,85023.0,85022.0,0.76160959]
[1743557676077,0.0355,85023.0,85022.0,0.76160959]
[1743557676476,0.0347,85023.0,85022.0,0.76160959]
[1743557676667,0.0345,85023.0,85022.0,0.76160959]
[1743557676873,0.0355,85023.0,85022.0,0.76160959]
[1743557677073,0.0347,85023.0,85022.0,0.76160959]
[1743557677274,0.0355,85023.0,85022.0,0.76160959]
[1743557677469,0.0685,85023.0,85022.0,0.76160959]
[1743557677777,0.1871128,85023.0,85022.0,0.76060959]
[1743557678170,0.0695,85023.0,85022.0,0.76060959]
[1743557678383,0.0687,85023.0,85022.0,0.79270959]
[1743557679083,0.0667,85023.0,85022.0,0.5113142]
[1743557679282,0.0687,85023.0,85022.0,0.5113142]
[1743557679681,0.0024,85023.0,85022.0,0.5113142]
[1743557679875,0.0004,85023.0,85022.0,0.6328142]
[1743557680672,0.0004,85023.0,85022.0,0.6338142]
[1743557681384,0.0004,85023.0,85022.0,0.6348142]
[1743557681978,0.0004,85023.0,85022.0,0.6358142]
[1743557685276,0.0004,85023.0,85022.0,0.7758142]
[1743557686283,0.0004,85023.0,85022.0,0.83096364]
[1743557686490,0.0004,85023.0,85022.0,0.7758142]
[1743557686886,0.0004,85023.0,85022.0,0.8309637]
[1743557688994,0.0004,85023.0,85022.0,1.22781682]
[1743557690789,0.0004,85023.0,85022.0,0.99781682]
[1743557691593,0.0004,85023.0,85022.0,0.94266732]
[1743557691793,0.0004,85023.0,85022.0,1.05266732]
[1743557691996,0.0004,85023.0,85022.0,1.10784439]
[1743557693983,0.00017651,85031.0,85030.0,0.1176031]
[1743557694188,0.00017651,85031.0,85030.0,0.72386017]
[1743557694490,0.00017651,85031.0,85030.0,0.6686831]
[1743557694895,0.00017651,85031.0,85030.0,0.7307831]
[1743557695191,0.00017651,85031.0,85030.0,0.7327831]
[1743557696186,0.00017651,85031.0,85030.0,1.12963622]
[1743557697290,0.00017651,85031.0,85030.0,1.02263622]
[1743557698388,0.00017651,85031.0,85030.0,1.07774427]
[1743557699296,0.00017651,85031.0,85030.0,0.68089115]
[1743557699596,0.00017651,85031.0,85030.0,0.79089115]
[1743557700989,1e-08,85039.0,85038.0,0.1175921]
[1743557701191,5e-08,85048.0,85047.0,0.1175796]
[1743557701390,5e-08,85055.0,85054.0,0.11757]
[1743557701598,5e-08,85055.0,85054.0,0.90427805]
[1743557701599,0.00088005,85055.0,85054.0,0.90427805]
[1743557701805,5e-08,85055.0,85054.0,0.53427805]
[1743557702299,5e-08,85055.0,85054.0,0.47917]
[1743557702499,5e-08,85055.0,85054.0,0.57917]
[1743557704003,0.00300005,85055.0,85054.0,0.57917]
[1743557704198,0.00300005,85055.0,85054.0,0.47917]
[1743557704599,0.00200005,85055.0,85054.0,0.47917]
[1743557705188,0.00700005,85055.0,85054.0,0.47917]
[1743557705401,0.00700005,85055.0,85054.0,0.83997]
[1743557705899,0.00200005,85055.0,85054.0,0.83997]
[1743557706203,0.00500005,85055.0,85054.0,0.83997]
[1743557707793,0.00500005,85055.0,85054.0,0.11837]
[1743557708000,0.00500005,85055.0,85054.0,0.83997]
[1743557712691,0.00500005,85055.0,85054.0,0.87307]
[1743557712893,3e-08,85063.0,85062.0,0.1175589]
[1743557713103,3e-08,85063.0,85062.0,0.9691589]
[1743557713802,3e-08,85063.0,85062.0,1.0363589]
[1743557714212,0.00100003,85063.0,85062.0,1.0363589]
[1743557714823,3e-08,85063.0,85062.0,1.0363589]
[1743557716020,0.0004,85071.0,85070.0,0.1175479]
[1743557716221,0.0004,85071.0,85070.0,1.1083879]
[1743557716727,0.0004,85071.0,85070.0,1.11730454]
[1743557716918,0.0004,85071.0,85070.0,1.18450454]
[1743557717728,1e-07,85071.0,85070.0,1.18850454]
[1743557718821,1e-07,85071.0,85070.0,1.19150454]
[1743557719223,0.0655,85091.0,85086.0,0.1175257]
[1743557719426,0.0012,85087.0,85086.0,1.1791257]
[1743557719616,0.0004,85087.0,85086.0,1.1791257]
[1743557719925,0.0667,85099.0,85098.0,0.1175092]
[1743557720128,0.0675,85099.0,85098.0,0.4791092]
[1743557720331,0.0675,85099.0,85098.0,0.5583092]
[1743557722026,0.0705,85099.0,85098.0,0.5583092]
[1743557722935,0.0725,85099.0,85098.0,0.5583092]
[1743557723631,0.0717,85099.0,85098.0,0.5583092]
[1743557725142,0.0725,85099.0,85098.0,0.5583092]
[1743557725634,0.0717,85099.0,85098.0,0.5583092]
[1743557726240,0.0725,85099.0,85098.0,0.5583092]
[1743557727737,0.0717,85099.0,85098.0,0.5583092]
[1743557727932,0.07254,85099.0,85098.0,0.5583092]
[1743557729528,0.0717,85099.0,85098.0,0.5583092]
[1743557730338,0.005,85099.0,85098.0,0.5583092]
[1743557730640,0.005,85099.0,85098.0,0.6683092]
[1743557732140,0.004,85099.0,85098.0,0.6683092]
[1743557732844,0.003,85099.0,85098.0,0.6683092]
[1743557733346,0.003,85099.0,85098.0,0.6999092]
[1743557733940,0.003,85099.0,85098.0,0.75473061]
[1743557735241,0.003,85099.0,85098.0,1.03547621]
[1743557735438,0.001,85099.0,85098.0,1.03547621]
[1743557735640,0.001,85099.0,85098.0,1.03747621]
[1743557735842,0.1,85100.0,85099.0,0.1175078]
[1743557736038,0.1,85100.0,85099.0,0.2283078]
[1743557736343,0.1,85100.0,85099.0,0.2940078]
[1743557736537,0.1,85100.0,85099.0,0.34812196]
[1743557736740,0.0334,85108.0,85107.0,0.1174967]
[1743557736943,0.0334,85108.0,85107.0,0.4790967]
[1743557736944,0.03400001,85108.0,85107.0,0.4790967]
[1743557737138,0.0334,85108.0,85107.0,0.4790967]
[1743557737646,0.0334,85108.0,85107.0,0.5111967]
[1743557738348,0.0329,85109.0,85108.0,0.1174954]
[1743557738645,0.0637,85118.0,85117.0,0.1174829]
[1743557738831,0.0975,85118.0,85117.0,0.4790829]
[1743557739633,0.0975,85118.0,85117.0,0.48770418]
[1743557741633,0.0995,85118.0,85117.0,0.48770418]
[1743557742644,0.10034,85118.0,85117.0,0.48770418]
[1743557743043,0.0995,85118.0,85117.0,0.48770418]
[1743557746845,0.10014,85118.0,85117.0,0.48770418]
[1743557747054,0.0995,85118.0,85117.0,0.48770418]
[1743557747364,0.10038,85118.0,85117.0,0.48770418]
[1743557747855,0.0995,85118.0,85117.0,0.48770418]
[1743557748155,0.1003,85118.0,85117.0,0.48770418]
[1743557748347,0.0995,85118.0,85117.0,0.48770418]
[1743557748844,0.1003,85118.0,85117.0,0.48770418]
[1743557749445,0.0995,85118.0,85117.0,0.48770418]
[1743557749942,0.0995,85118.0,85117.0,0.7678862]
[1743557750654,0.2169816,85118.0,85117.0,0.64178202]
[1743557750853,0.2177816,85118.0,85117.0,0.64178202]
[1743557751054,0.2177816,85118.0,85117.0,0.75926492]
[1743557751359,0.2169816,85118.0,85117.0,0.75926492]
[1743557752251,0.1003,85118.0,85117.0,0.75926492]
[1743557752455,0.0995,85118.0,85117.0,0.64178202]
[1743557752663,0.5022482,85118.0,85117.0,0.28098202]
[1743557752954,0.5030482,85118.0,85117.0,0.1182829]
[1743557753163,0.1003,85118.0,85117.0,0.1182829]
[1743557753349,0.2177816,85118.0,85117.0,0.5114829]
[1743557753548,0.2177816,85118.0,85117.0,0.4790829]
[1743557755563,0.85548813,85118.0,85117.0,0.0008]
[1743557756358,0.86672196,85118.0,85117.0,0.0008]
[1743557756564,0.71672196,85118.0,85117.0,0.0008]
[1743557759460,0.70548813,85118.0,85117.0,0.0008]
[1743557759660,0.71677946,85118.0,85117.0,0.0008]
[1743557760961,0.1174843,85116.0,85115.0,0.1174856]
[1743557761166,0.1182843,85116.0,85115.0,0.1182856]
[1743557761863,0.1182843,85116.0,85115.0,0.0008]
[1743557762068,0.1762422,85110.0,85109.0,0.1174929]
[1743557762265,0.1770822,85110.0,85109.0,0.1182929]
[1743557762564,0.2400822,85110.0,85109.0,0.1182929]
[1743557762769,0.36289841,85110.0,85109.0,0.1182929]
[1743557763568,0.36289841,85110.0,85109.0,0.1539929]
[1743557764561,0.36289841,85110.0,85109.0,0.1549929]
[1743557765760,0.36289841,85110.0,85109.0,0.1212929]
[1743557766260,0.06384,85110.0,85109.0,0.1212929]
[1743557766461,0.063,85110.0,85109.0,0.1212929]
[1743557766660,0.1762313,85115.0,85112.0,0.1174898]
[1743557766863,0.1507885,85113.0,85112.0,0.1770341]
[1743557767165,0.28500232,85113.0,85112.0,0.1770341]
[1743557767372,0.0341,85113.0,85112.0,0.5378341]
[1743557767575,0.1507885,85113.0,85112.0,0.1770341]
[1743557767766,0.1515885,85113.0,85112.0,0.1770341]
[1743557768957,0.1515885,85113.0,85112.0,0.1780341]
[1743557771067,0.1182885,85113.0,85112.0,0.1780341]
[1743557772566,0.0008,85113.0,85112.0,0.1780341]
[1743557772767,0.0008,85113.0,85112.0,0.5388341]
[1743557772972,0.14071004,85120.0,85118.0,0.1174816]
[1743557773278,0.14071004,85120.0,85118.0,0.1182816]
[1743557773464,0.00100001,85119.0,85118.0,0.1182816]
[1743557773969,0.00100001,85119.0,85118.0,0.1521816]
[1743557774171,0.0024,85119.0,85118.0,0.1521816]
[1743557775076,0.1206802,85119.0,85118.0,0.1521816]
[1743557775875,0.1216802,85119.0,85118.0,0.1521816]
[1743557776669,0.0042,85119.0,85118.0,0.1521816]
[1743557777673,0.0034,85119.0,85118.0,0.1521816]
[1743557778378,0.00428,85119.0,85118.0,0.1521816]
[1743557778883,0.0034,85119.0,85118.0,0.1521816]
[1743557780571,0.0034,85119.0,85118.0,0.36301541]
[1743557782788,0.0034,85119.0,85118.0,0.39781541]
[1743557783084,0.0034,85119.0,85118.0,0.1869816]
[1743557783486,0.0034,85119.0,85118.0,0.2205816]
[1743557789388,0.1208802,85119.0,85118.0,0.2205816]
[1743557789578,0.1208802,85119.0,85118.0,0.1869816]
[1743557789775,0.00424,85119.0,85118.0,0.1530816]
[1743557789976,0.0387,85119.0,85118.0,0.1530816]
[1743557790182,0.0738,85119.0,85118.0,0.1530816]
[1743557790384,0.0738,85119.0,85118.0,0.1862816]
[1743557790688,0.00408,85119.0,85118.0,0.1862816]
[1743557790889,0.0034,85119.0,85118.0,0.1862816]
[1743557796780,0.0034,85119.0,85118.0,0.2016285]
[1743557798693,0.0356,85126.0,85125.0,0.1174719]
[1743557798889,0.03648,85126.0,85125.0,0.4791519]
[1743557799378,0.0356,85126.0,85125.0,0.4944988]
[1743557799586,0.0004,85135.0,85134.0,0.1174595]
[1743557799782,0.0012,85135.0,85134.0,0.4790595]
[1743557799983,0.0012,85135.0,85134.0,0.5436595]
[1743557800295,0.0012,85135.0,85134.0,0.5590064]
[1743557801299,0.0022,85135.0,85134.0,0.5590064]
[1743557802890,0.0012,85135.0,85134.0,0.5436595]
[1743557804297,0.0012,85135.0,85134.0,0.84010259]
[1743557804492,0.0004,85135.0,85134.0,0.84010259]
[1743557805491,1e-07,85135.0,85134.0,1.15926259]
[1743557806007,1e-07,85135.0,85134.0,0.91926259]
[1743557806599,1e-07,85135.0,85134.0,0.90389612]
[1743557807601,1e-07,85135.0,85134.0,1.17389612]
[1743557807801,1e-07,85135.0,85134.0,0.90389612]
[1743557808317,1e-07,85135.0,85134.0,1.64133787]
[1743557808509,1e-07,85135.0,85134.0,1.88133787]
[1743557808692,1e-07,85135.0,85134.0,1.75133787]
[1743557808901,1e-07,85135.0,85134.0,1.80542632]
[1743557810002,1e-07,85135.0,85134.0,1.69542632]
[1743557810706,1e-07,85135.0,85134.0,1.64133787]
[1743557811210,1e-07,85151.0,85150.0,0.1174374]
[1743557811505,0.14071004,85162.0,85161.0,0.1174222]
[1743557811692,0.14151004,85162.0,85161.0,0.4790222]
[1743557812510,0.0008,85162.0,85161.0,0.49443618]
[1743557812700,0.0348,85166.0,85165.0,0.1174167]
[1743557812900,0.0348,85166.0,85165.0,0.1182567]
[1743557813206,0.0348,85166.0,85165.0,0.13367068]
[1743557813506,0.0348,85166.0,85165.0,0.14264238]
[1743557813810,0.0348,85166.0,85165.0,0.17534238]
[1743557814306,0.0004,85167.0,85166.0,0.1174153]
[1743557814512,0.0004,85167.0,85166.0,0.1860953]
[1743557814707,0.0004,85167.0,85166.0,0.20150928]
[1743557816005,0.0014,85167.0,85166.0,0.20150928]
[1743557816211,0.0024,85167.0,85166.0,0.20150928]
[1743557818609,0.0024,85167.0,85166.0,0.28138928]
[1743557819207,0.0024,85167.0,85166.0,0.24628928]
[1743557820010,0.0024,85167.0,85166.0,0.2308753]
[1743557821002,0.0024,85167.0,85166.0,0.1509953]
[1743557821517,1e-07,85167.0,85166.0,0.1839953]
[1743557822413,1e-07,85167.0,85166.0,0.19934979]
[1743557822616,1e-07,85167.0,85166.0,0.21472884]
[1743557822810,0.0352,85172.0,85171.0,0.1174085]
[1743557823010,0.0352,85172.0,85171.0,0.49440299]
[1743557823609,0.0352,85172.0,85171.0,0.54278204]
[1743557823910,0.0352,85172.0,85171.0,0.57708204]
[1743557824311,0.036,85172.0,85171.0,0.57708204]
[1743557824618,0.1534071,85172.0,85171.0,0.54408204]
[1743557824813,0.036,85172.0,85171.0,0.54408204]
[1743557825112,0.1534071,85172.0,85171.0,0.54508204]
[1743557825422,0.1534071,85172.0,85171.0,0.01721905]
[1743557825807,0.1534071,85172.0,85171.0,0.01637905]
[1743557826118,0.1544071,85172.0,85171.0,0.13366755]
[1743557826914,0.1544071,85172.0,85171.0,0.01625905]
[1743557827508,0.1544071,85172.0,85171.0,0.13278755]
[1743557827710,0.1534071,85172.0,85171.0,0.13358755]
[1743557828017,0.1544071,85172.0,85171.0,0.13358755]
[1743557828215,0.5152071,85172.0,85171.0,0.13358755]
[1743557828416,0.5162071,85172.0,85171.0,0.13278755]
[1743557828618,0.6384832,85172.0,85171.0,0.01621905]
[1743557828813,0.7894832,85172.0,85171.0,0.01537905]
[1743557829015,0.1174153,85166.0,85165.0,0.1174158]
[1743557829214,0.1182953,85166.0,85165.0,0.1182558]
[1743557829414,0.2405714,85166.0,85165.0,0.1182558]
[1743557829821,0.3084714,85166.0,85165.0,0.1182558]
[1743557830122,0.3084714,85166.0,85165.0,0.00084]
[1743557830520,0.3084714,85166.0,85165.0,0.1174167]
[1743557830831,0.1174181,85164.0,85163.0,0.11759498]
[1743557831117,0.4790981,85164.0,85163.0,0.11843498]
[1743557831321,0.61268277,85164.0,85163.0,0.11843498]
[1743557831724,0.61268277,85164.0,85163.0,0.11759498]
[1743557832317,0.61568277,85164.0,85163.0,0.11839498]
[1743557833317,0.61668277,85164.0,85163.0,0.11839498]
[1743557833517,0.61668277,85164.0,85163.0,0.13430338]
[1743557834230,0.61668277,85164.0,85163.0,0.11839498]
[1743557834433,0.61668277,85164.0,85163.0,0.13350838]
[1743557834937,0.61668277,85164.0,85163.0,0.01608958]
[1743557835135,0.61668277,85164.0,85163.0,0.01604164]
[1743557836030,0.61668277,85164.0,85163.0,0.00017618]
[1743557841835,0.61668277,85164.0,85163.0,0.01576412]
[1743557842424,0.61668277,85164.0,85163.0,0.01656412]
[1743557844527,0.61668277,85164.0,85163.0,0.01576412]
[1743557844727,0.61668277,85164.0,85163.0,0.01660412]
[1743557845129,0.61668277,85164.0,85163.0,0.01576412]
[1743557845631,0.13846467,85164.0,85163.0,0.13318362]
[1743557845850,0.00488,85164.0,85163.0,0.24978761]
[1743557846039,0.1214181,85164.0,85163.0,0.24978761]
[1743557846248,0.1222581,85164.0,85163.0,0.24978761]
[1743557846428,0.1222581,85164.0,85163.0,0.23398362]
[1743557846935,0.1868581,85164.0,85163.0,0.23398362]
[1743557847340,0.1868581,85164.0,85163.0,0.24975579]
[1743557847542,0.1868581,85164.0,85163.0,0.23398362]
[1743557847744,0.1858581,85164.0,85163.0,0.23398362]
[1743557848041,0.1868581,85164.0,85163.0,0.23398362]
[1743557848337,0.67779426,85164.0,85163.0,0.05116412]
[1743557848640,0.67679426,85164.0,85163.0,0.05036412]
[1743557848836,0.67779426,85164.0,85163.0,0.05124412]
[1743557849137,0.67779426,85164.0,85163.0,0.16866362]
[1743557850840,0.67779426,85164.0,85163.0,0.05124412]
[1743557851140,0.67779426,85164.0,85163.0,0.01576412]
[1743557851341,0.1953,85163.0,85118.0,0.85354814]
[1743557851529,0.1174581,85135.0,85134.0,0.3744449]
[1743557851730,0.1174788,85120.0,85119.0,0.0341]
[1743557851938,0.5604788,85120.0,85119.0,0.0347]
[1743557852242,0.69551285,85120.0,85119.0,0.0006]
[1743557852629,0.69551285,85120.0,85115.0,0.0341]
[1743557852630,0.1174802,85119.0,85115.0,0.0341]
[1743557852835,0.1174802,85119.0,85111.0,0.00017618]
[1743557852836,0.1174871,85114.0,85112.0,0.59724074]
[1743557853041,0.11844711,85114.0,85113.0,0.57815217]
[1743557853245,0.25437503,85114.0,85113.0,0.61315217]
[1743557854536,0.25437503,85114.0,85113.0,0.0356]
[1743557855333,0.25437503,85114.0,85113.0,0.0366]
[1743557855847,0.25437503,85114.0,85113.0,0.0376]
[1743557857342,0.25437503,85114.0,85113.0,0.037]
[1743557857747,0.25437503,85114.0,85113.0,0.0376]
[1743557858849,0.25437503,85114.0,85113.0,0.037]
[1743557859745,0.25437503,85114.0,85113.0,0.03764]
[1743557860652,0.25437503,85114.0,85113.0,0.037]
[1743557862051,0.25437503,85114.0,85113.0,0.0376]
[1743557862449,0.25437503,85114.0,85113.0,0.037]
[1743557863148,0.25437503,85114.0,85113.0,0.0376]
[1743557865344,0.25437503,85114.0,85113.0,0.037]
[1743557866052,0.25437503,85114.0,85113.0,0.03764]
[1743557866258,0.25437503,85114.0,85113.0,0.037]
[1743557866451,0.25437503,85114.0,85113.0,0.0376]
[1743557867251,0.25437503,85114.0,85113.0,0.1550885]
[1743557867848,0.33565503,85114.0,85113.0,0.1550885]
[1743557868147,0.33561503,85114.0,85113.0,0.1550885]
[1743557868454,0.33561503,85114.0,85113.0,0.0376]
[1743557868650,0.25437503,85114.0,85113.0,0.037]
[1743557868847,0.33557503,85114.0,85113.0,0.0376]
[1743557869149,0.33557503,85114.0,85113.0,0.0706]
[1743557870648,0.33557503,85114.0,85113.0,0.1880885]
[1743557871662,0.13688793,85114.0,85113.0,0.1880885]
[1743557871955,0.00096001,85114.0,85113.0,0.56478158]
[1743557872158,0.1174821,85118.0,85117.0,0.1762212]
[1743557872351,0.10512807,85127.0,85126.0,0.1174705]
[1743557872554,0.10608808,85127.0,85126.0,0.13396193]
[1743557872852,0.10608808,85127.0,85126.0,0.17559742]
[1743557873053,0.22355718,85127.0,85126.0,0.1493569]
[1743557873246,0.22355718,85127.0,85126.0,0.2175569]
[1743557873449,0.10608808,85127.0,85126.0,0.2175569]
[1743557873650,0.10608808,85127.0,85126.0,0.2451303]
[1743557874360,0.10608808,85127.0,85126.0,0.27060628]
[1743557874551,0.10812807,85127.0,85126.0,0.27060628]
[1743557874755,0.10912807,85127.0,85126.0,0.30478158]
[1743557875067,0.004,85127.0,85126.0,0.30478158]
[1743557875361,0.00017543,85128.0,85127.0,0.1174691]
[1743557875562,0.00017543,85128.0,85127.0,0.19570923]
[1743557875869,0.00017543,85128.0,85127.0,0.23100923]
[1743557876062,0.00017543,85128.0,85127.0,0.26400923]
[1743557876446,0.10512807,85145.0,85133.0,0.0587304]
[1743557876447,0.00861953,85140.0,85133.0,0.0587304]
[1743557876646,0.00861953,85140.0,85139.0,0.1174526]
[1743557876647,0.00096001,85140.0,85139.0,0.1174526]
[1743557876853,0.11841121,85140.0,85139.0,0.16091743]
[1743557877062,0.00096001,85140.0,85139.0,0.19635279]
[1743557877356,0.00096001,85140.0,85139.0,0.27022183]
[1743557877554,0.1174459,85144.0,85143.0,0.1174457]
[1743557877750,0.11840591,85144.0,85143.0,0.16159053]
[1743557877947,0.11840591,85144.0,85143.0,0.22066543]
[1743557878459,0.00096001,85144.0,85143.0,0.22066543]
[1743557878655,0.00096001,85144.0,85143.0,0.23759397]
[1743557878962,0.12140571,85144.0,85143.0,0.23759397]
[1743557879255,0.003,85144.0,85143.0,0.23759397]
[1743557879561,0.003,85144.0,85143.0,0.15899665]
[1743557879959,0.003,85144.0,85143.0,0.28599865]
[1743557880365,0.003,85144.0,85143.0,0.25064414]
[1743557880659,0.1204457,85144.0,85143.0,0.20468328]
[1743557880864,0.1224457,85144.0,85143.0,0.20468328]
[1743557881047,0.1234457,85144.0,85143.0,0.28605375]
[1743557881252,0.006,85144.0,85143.0,0.28909536]
[1743557881452,0.1234457,85144.0,85143.0,0.28909536]
[1743557881952,0.1234457,85144.0,85143.0,0.25239445]
[1743557883164,0.1234457,85144.0,85143.0,0.24804005]
[1743557883459,0.25151994,85144.0,85143.0,0.13059435]
[1743557883760,0.61231994,85144.0,85143.0,0.07147162]
[1743557883955,0.1174622,85132.0,85129.0,0.0587328]
[1743557884149,0.11866221,85132.0,85129.0,0.0587328]
[1743557884463,0.24553331,85132.0,85129.0,0.0587328]
[1743557884656,0.31053331,85132.0,85129.0,0.0587328]
[1743557884851,0.31053331,85132.0,85125.0,0.0587353]
[1743557885059,0.31053331,85132.0,85131.0,0.11763978]
[1743557885254,0.19307111,85132.0,85131.0,0.11827978]
[1743557885566,0.12807111,85132.0,85131.0,0.11827978]
[1743557886860,0.12807111,85132.0,85131.0,0.11927978]
[1743557887257,0.1268711,85132.0,85131.0,0.11927978]
[1743557887458,0.1280311,85132.0,85131.0,0.11927978]
[1743557887660,0.00116,85132.0,85131.0,0.11927978]
[1743557888067,0.13223291,85132.0,85131.0,0.11927978]
[1743557889758,0.13107291,85132.0,85131.0,0.11927978]
[1743557889959,0.13223291,85132.0,85131.0,0.11927978]
[1743557890154,0.1174609,85133.0,85132.0,0.1761901]
[1743557890364,0.11866091,85133.0,85132.0,0.1768301]
[1743557890568,0.2487171,85133.0,85132.0,0.1768301]
[1743557891367,0.2487171,85133.0,85132.0,0.1778301]
[1743557891873,0.1312562,85133.0,85132.0,0.2083301]
[1743557892361,0.13005619,85133.0,85132.0,0.2083301]
[1743557892663,0.00120001,85133.0,85132.0,0.2083301]
[1743557892868,0.1174512,85140.0,85139.0,0.1174512]
[1743557893069,0.11869121,85140.0,85139.0,0.1174512]
[1743557893268,0.31442117,85140.0,85139.0,0.1186112]
[1743557893967,0.31542117,85140.0,85139.0,0.1186112]
[1743557894162,0.31742117,85140.0,85139.0,0.1186112]
[1743557894556,0.31742117,85140.0,85139.0,0.14440453]
[1743557895775,0.31742117,85140.0,85139.0,0.02695333]
[1743557895969,0.31742117,85140.0,85139.0,0.02579333]
[1743557896171,0.31742117,85140.0,85139.0,0.14324593]
[1743557896375,0.31742117,85140.0,85139.0,0.15977197]
[1743557897373,0.31742117,85140.0,85139.0,0.13397864]
[1743557897576,0.31742117,85140.0,85139.0,0.13333864]
[1743557897977,0.31742117,85140.0,85139.0,0.01588604]
[1743557899178,0.31742117,85140.0,85139.0,0.04122484]
[1743557899881,0.31742117,85140.0,85139.0,0.01588604]
[1743557901272,0.31742117,85140.0,85139.0,0.04126256]
[1743557901472,0.31742117,85140.0,85139.0,0.04186256]
[1743557905772,0.31742117,85140.0,85139.0,0.04126256]
[1743557905976,0.31742117,85140.0,85139.0,0.04186256]
[1743557906387,0.31742117,85140.0,85139.0,0.04126256]
[1743557907692,0.31742117,85140.0,85139.0,0.04194256]
[1743557907990,0.67822117,85140.0,85139.0,0.15939516]
[1743557908374,0.67822117,85140.0,85139.0,0.1749534]